fUST/lending_fUST_20250925
["ID","MTS","AMOUNT","RATE_DAILY","PERIOD"]
[387691392,1758811840286,-480.0,0.00019598,2]
[387691393,1758811840295,-480.0,0.00019599,2]
[387691394,1758811840305,-480.0,0.00019599,2]
[387691395,1758811840315,-480.0,0.00019599,2]
[387691396,1758811840325,-480.0,0.00019869,2]
[387691397,1758811840341,-480.0,0.00019869,2]
[387691398,1758811840353,-480.0,0.0001987,2]
[387691399,1758811840362,-380.7640216,0.0001987,2]
[387691400,1758811840372,-480.0,0.0001987,2]
[387691401,1758811840381,-480.0,0.0001987,2]
[387691402,1758811840396,-480.0,0.0001987,2]
[387691403,1758811840409,-480.0,0.0001987,2]
[387691404,1758811840422,-480.0,0.0001987,2]
[387691405,1758811840436,-480.0,0.0001987,2]
[387691406,1758811840447,-522.17,0.0001987,2]
[387691407,1758811840458,-480.0,0.0001987,2]
[387691408,1758811840472,-607.13081962,0.0001987,2]
[387691409,1758811840487,-480.0,0.0001987,2]
[387691410,1758811840502,-480.0,0.0001987,2]
[387691411,1758811840514,-570.63998174,0.0001987,2]
[387691412,1758811840528,-480.0,0.0001987,2]
[387691413,1758811840540,-540.88969776,0.0001987,2]
[387691414,1758811840553,-480.0,0.0001987,2]
[387691415,1758811840565,-480.0,0.0001987,2]
[387691416,1758811840579,-480.0,0.0001987,2]
[387691417,1758811840590,-480.0,0.0001987,2]
[387691418,1758811840601,-480.0,0.0001987,2]
[387691419,1758811840614,-480.0,0.0001987,2]
[387691420,1758811840627,-480.0,0.0001987,2]
[387691421,1758811840639,-480.0,0.0001987,2]
[387691422,1758811840653,-480.0,0.0001987,2]
[387691423,1758811840665,-480.0,0.0001987,2]
[387691424,1758811840678,-480.0,0.0001987,2]
[387691425,1758811840691,-480.0,0.0001987,2]
[387691427,1758811840701,-295.42441304,0.0001987,2]
[387691428,1758811840712,-546.62874828,0.0001987,2]
[387691429,1758811840724,-480.0,0.0001987,2]
[387691430,1758811840736,-587.24,0.0001987,2]
[387691431,1758811840750,-480.0,0.0001987,2]
[387691432,1758811840761,-480.0,0.0001987,2]
[387691433,1758811840774,-480.0,0.0001987,2]
[387691434,1758811840786,-480.0,0.0001987,2]
[387691435,1758811840799,-480.0,0.0001987,2]
[387691436,1758811840812,-611.71,0.0001987,2]
[387691437,1758811840824,-480.0,0.0001987,2]
[387691438,1758811840837,-480.0,0.0001987,2]
[387691439,1758811840849,-480.0,0.0001987,2]
[387691440,1758811840859,-480.0,0.0001987,2]
[387691441,1758811840869,-480.0,0.0001987,2]
[387691442,1758811840879,-480.0,0.0001987,2]
[387691443,1758811840891,-480.0,0.0001987,2]
[387691444,1758811840903,-480.0,0.0001987,2]
[387691445,1758811840917,-594.56971981,0.0001987,2]
[387691446,1758811840930,-480.0,0.0001987,2]
[387691447,1758811840940,-590.18,0.0001987,2]
[387691448,1758811840951,-480.0,0.0001987,2]
[387691449,1758811840962,-500.0,0.00019871,2]
[387691450,1758811840974,-480.0,0.00019871,2]
[387691451,1758811840986,-480.0,0.00019871,2]
[387691452,1758811840999,-480.0,0.00019871,2]
[387691453,1758811841009,-569.18840441,0.00019871,2]
[387691454,1758811841020,-2422.16,0.00019871,2]
[387691455,1758811841030,-480.0,0.00019871,2]
[387691456,1758811841041,-480.0,0.00019871,2]
[387691457,1758811841052,-208.86633553,0.00019871,2]
[387691458,1758811841064,-456.75447438,0.00019871,2]
[387691459,1758811841076,-480.0,0.00019871,2]
[387691460,1758811841088,-480.0,0.00019871,2]
[387691461,1758811841099,-480.0,0.00019871,2]
[387691462,1758811841111,-1847.87,0.00019871,2]
[387691463,1758811841123,-480.0,0.00019871,2]
[387691464,1758811841134,-480.0,0.00019871,2]
[387691465,1758811841145,-671.94,0.00019871,2]
[387691466,1758811841155,-480.0,0.00019872,2]
[387691467,1758811841167,-480.0,0.00019872,2]
[387691468,1758811841178,-480.0,0.00019872,2]
[387691469,1758811841193,-480.0,0.00019872,2]
[387691470,1758811841205,-480.0,0.00019873,2]
[387691471,1758811841216,-480.0,0.00019873,2]
[387691472,1758811841227,-480.0,0.00019873,2]
[387691473,1758811841240,-150.0,0.00019891,2]
[387691474,1758811841251,-1466.91972156,0.000199,2]
[387691475,1758811841263,-500.0,0.00019973,2]
[387691476,1758811841275,-100000.0,0.0001999,2]
[387691477,1758811841286,-326.53,0.00020045,2]
[387691478,1758811841297,-1000.0,0.00020121,2]
[387691479,1758811841308,-500.0,0.00020121,2]
[387691480,1758811841318,-480.0,0.00020143,2]
[387691481,1758811841329,-480.0,0.00020143,2]
[387691482,1758811841341,-593.51595937,0.00020144,2]
[387691483,1758811841352,-480.0,0.00020144,2]
[387691484,1758811841363,-480.0,0.00020144,2]
[387691485,1758811841374,-480.0,0.00020144,2]
[387691486,1758811841385,-480.0,0.00020144,2]
[387691487,1758811841396,-346.47,0.00020144,2]
[387691488,1758811841407,-522.17,0.00020144,2]
[387691489,1758811841418,-480.0,0.00020144,2]
[387691490,1758811841428,-480.0,0.00020144,2]
[387691492,1758811841437,-480.0,0.00020144,2]
[387691494,1758811841447,-480.0,0.00020144,2]
[387691495,1758811841456,-487.82382391,0.00020144,2]
[387691497,1758811841466,-480.0,0.00020144,2]
[387691508,1758811841581,-480.0,0.00020144,2]
[387691510,1758811841597,-480.0,0.00020144,2]
[387691512,1758811841607,-552.91187239,0.00020144,2]
[387691514,1758811841617,-240.80005109,0.00020144,2]
[387691516,1758811841627,-312.49189763,0.00020144,2]
[387691518,1758811841637,-480.0,0.00020144,2]
[387691520,1758811841647,-480.0,0.00020144,2]
[387691522,1758811841656,-480.0,0.00020144,2]
[387691524,1758811841665,-480.0,0.00020144,2]
[387691526,1758811841675,-480.0,0.00020144,2]
[387691528,1758811841684,-587.24,0.00020144,2]
[387691530,1758811841693,-480.0,0.00020144,2]
[387691532,1758811841702,-480.0,0.00020144,2]
[387691534,1758811841711,-480.0,0.00020144,2]
[387691536,1758811841720,-324.66409079,0.00020144,2]
[387691538,1758811841729,-611.71,0.00020144,2]
[387691540,1758811841738,-480.0,0.00020144,2]
[387691542,1758811841748,-480.0,0.00020144,2]
[387691544,1758811841757,-340.20104849,0.00020144,2]
[387691546,1758811841766,-480.0,0.00020144,2]
[387691548,1758811841775,-480.0,0.00020144,2]
[387691550,1758811841784,-480.0,0.00020144,2]
[387691552,1758811841793,-480.0,0.00020144,2]
[387691554,1758811841802,-480.0,0.00020144,2]
[387691556,1758811841812,-480.0,0.00020144,2]
[387691558,1758811841820,-480.0,0.00020144,2]
[387691560,1758811841830,-480.0,0.00020145,2]
[387691562,1758811841839,-480.0,0.00020145,2]
[387691563,1758811841848,-480.0,0.00020145,2]
[387691565,1758811841858,-2422.16,0.00020145,2]
[387691567,1758811841867,-480.0,0.00020145,2]
[387691569,1758811841876,-461.46384116,0.00020145,2]
[387691571,1758811841886,-480.0,0.00020145,2]
[387691573,1758811841895,-480.0,0.00020145,2]
[387691575,1758811841905,-1847.87,0.00020145,2]
[387691577,1758811841914,-480.0,0.00020145,2]
[387691579,1758811841923,-480.0,0.00020145,2]
[387691581,1758811841933,-671.94,0.00020145,2]
[387691583,1758811841942,-480.0,0.00020146,2]
[387691585,1758811841951,-480.0,0.00020146,2]
[387691587,1758811841960,-480.0,0.00020146,2]
[387691589,1758811841970,-480.0,0.00020147,2]
[387691591,1758811841979,-480.0,0.00020147,2]
[387691593,1758811841988,-374.50143932,0.00020405,2]
[387691595,1758811841999,-480.0,0.00020417,2]
[387691597,1758811842008,-460.16360116,0.00020418,2]
[387691599,1758811842018,-480.0,0.00020418,2]
[387691601,1758811842028,-485.71689908,0.00020418,2]
[387691603,1758811842038,-522.17,0.00020418,2]
[387691606,1758811842048,-550.8896507,0.00020418,2]
[387691607,1758811842057,-480.0,0.00020418,2]
[387691610,1758811842067,-480.0,0.00020418,2]
[387691612,1758811842077,-480.0,0.00020418,2]
[387691613,1758811842086,-480.0,0.00020418,2]
[387691615,1758811842096,-453.27641572,0.00020418,2]
[387691616,1758811842105,-480.0,0.00020418,2]
[387691617,1758811842115,-480.0,0.00020418,2]
[387691618,1758811842125,-480.0,0.00020418,2]
[387691619,1758811842135,-480.0,0.00020418,2]
[387691620,1758811842144,-480.0,0.00020418,2]
[387691621,1758811842154,-587.24,0.00020418,2]
[387691622,1758811842164,-480.0,0.00020418,2]
[387691624,1758811842173,-480.0,0.00020418,2]
[387691626,1758811842183,-480.0,0.00020418,2]
[387691628,1758811842195,-611.71,0.00020418,2]
[387691630,1758811842204,-480.0,0.00020418,2]
[387691632,1758811842213,-480.0,0.00020418,2]
[387691634,1758811842223,-480.0,0.00020418,2]
[387691636,1758811842233,-480.0,0.00020418,2]
[387691638,1758811842243,-480.0,0.00020418,2]
[387691640,1758811842252,-480.0,0.00020418,2]
[387691641,1758811842263,-171.01,0.00020418,2]
[387691643,1758811842274,-2422.16,0.00020419,2]
[387691645,1758811842283,-480.0,0.00020419,2]
[387691647,1758811842294,-480.0,0.00020419,2]
[387691649,1758811842303,-273.35057942,0.00020419,2]
[387691651,1758811842312,-1847.87,0.00020419,2]
[387691653,1758811842322,-480.0,0.00020419,2]
[387691655,1758811842331,-480.0,0.00020419,2]
[387691657,1758811842341,-671.94,0.00020419,2]
[387691658,1758811842351,-480.0,0.0002042,2]
[387691659,1758811842360,-480.0,0.0002042,2]
[387691660,1758811842369,-480.0,0.00020421,2]
[387691661,1758811842379,-480.0,0.00020421,2]
[387691662,1758811842388,-616.93175621,0.00020496,2]
[387691663,1758811842398,-28567.35474008,0.00020627,3]
[387691664,1758811842407,-500.0,0.0002063,2]
[387691667,1758811842426,-500.0,0.00020656,2]
[387691669,1758811842436,-500.0,0.00020668,2]
[387691671,1758811842447,-480.0,0.00020691,2]
[387691673,1758811842456,-522.17,0.00020692,2]
[387691676,1758811842467,-480.0,0.00020692,2]
[387691678,1758811842476,-480.0,0.00020692,2]
[387691679,1758811842486,-480.0,0.00020692,2]
[387691680,1758811842497,-480.0,0.00020692,2]
[387691681,1758811842507,-480.0,0.00020692,2]
[387691682,1758811842517,-480.0,0.00020692,2]
[387691683,1758811842527,-480.0,0.00020692,2]
[387691684,1758811842536,-587.24,0.00020692,2]
[387691685,1758811842546,-480.0,0.00020692,2]
[387691687,1758811842555,-480.0,0.00020692,2]
[387691689,1758811842565,-611.71,0.00020692,2]
[387691691,1758811842575,-480.0,0.00020692,2]
[387691693,1758811842585,-480.0,0.00020692,2]
[387691695,1758811842595,-350.16,0.00020692,2]
[387691697,1758811842605,-480.0,0.00020692,2]
[387691699,1758811842615,-480.0,0.00020692,2]
[387691701,1758811842624,-2422.16,0.00020693,2]
[387691703,1758811842635,-169.72,0.00020693,2]
[387691704,1758811842644,-480.0,0.00020693,2]
[387691706,1758811842655,-1847.87,0.00020693,2]
[387691708,1758811842664,-480.0,0.00020693,2]
[387691710,1758811842674,-671.94,0.00020693,2]
[387691712,1758811842683,-480.0,0.00020694,2]
[387691714,1758811842693,-480.0,0.00020694,2]
[387691716,1758811842703,-480.0,0.00020695,2]
[387691718,1758811842713,-480.0,0.00020695,2]
[387691720,1758811842723,-386.28,0.00020712,3]
[387691722,1758811842733,-160.0,0.00020806,2]
[387691724,1758811842744,-241.63707886,0.00020836,2]
[387691725,1758811842754,-150.0,0.00020843,2]
[387691726,1758811842764,-480.0,0.00020965,2]
[387691728,1758811842774,-522.17,0.00020966,2]
[387691729,1758811842783,-480.0,0.00020966,2]
[387691731,1758811842792,-480.0,0.00020966,2]
[387691733,1758811842802,-480.0,0.00020966,2]
[387691735,1758811842812,-480.0,0.00020966,2]
[387691737,1758811842822,-387.27137735,0.00020966,2]
[387691739,1758811842832,-325.83313614,0.00020966,2]
[387691741,1758811842842,-587.24,0.00020966,2]
[387691743,1758811842851,-480.0,0.00020966,2]
[387691745,1758811842861,-442.92,0.00020966,2]
[387691746,1758811842871,-611.71,0.00020966,2]
[387691747,1758811842881,-466.6,0.00020966,2]
[387691748,1758811842891,-480.0,0.00020966,2]
[387691749,1758811842900,-480.0,0.00020966,2]
[387691750,1758811842910,-492.77,0.00020966,2]
[387691751,1758811842919,-2422.16,0.00020967,2]
[387691752,1758811842929,-480.0,0.00020967,2]
[387691753,1758811842939,-1847.87,0.00020967,2]
[387691754,1758811842950,-480.0,0.00020967,2]
[387691755,1758811842960,-671.94,0.00020967,2]
[387691757,1758811842970,-480.0,0.00020968,2]
[387691759,1758811842980,-480.0,0.00020968,2]
[387691760,1758811842990,-480.0,0.00020969,2]
[387691762,1758811843000,-480.0,0.00020969,2]
[387691765,1758811843010,-1466.91972153,0.00020972,2]
[387691767,1758811843019,-420.0,0.00021052,2]
[387691768,1758811843029,-1368.0,0.00021053,2]
[387691771,1758811843039,-1680.0,0.00021153,2]
[387691772,1758811843049,-394.58552777,0.00021204,2]
[387691774,1758811843058,-480.0,0.00021239,2]
[387691777,1758811843068,-522.17,0.0002124,2]
[387691779,1758811843077,-480.0,0.0002124,2]
[387691781,1758811843087,-480.0,0.0002124,2]
[387691782,1758811843097,-480.0,0.0002124,2]
[387691784,1758811843106,-480.0,0.0002124,2]
[387691787,1758811843116,-587.24,0.0002124,2]
[387691789,1758811843126,-480.0,0.0002124,2]
[387691791,1758811843136,-611.71,0.0002124,2]
[387691793,1758811843146,-480.0,0.0002124,2]
[387691795,1758811843156,-480.0,0.0002124,2]
[387691797,1758811843167,-2422.16,0.00021241,2]
[387691799,1758811843177,-480.0,0.00021241,2]
[387691801,1758811843188,-1847.87,0.00021241,2]
[387691803,1758811843200,-480.0,0.00021241,2]
[387691804,1758811843209,-671.94,0.00021241,2]
[387691806,1758811843219,-480.0,0.00021242,2]
[387691808,1758811843229,-480.0,0.00021242,2]
[387691810,1758811843239,-480.0,0.00021243,2]
[387691812,1758811843249,-480.0,0.00021243,2]
[387691814,1758811843259,-500.0,0.00021343,2]
[387691816,1758811843270,-260.0,0.00021354,2]
[387691818,1758811843279,-500.0,0.00021379,2]
[387691820,1758811843289,-500.0,0.00021379,2]
[387691822,1758811843298,-500.0,0.00021379,2]
[387691824,1758811843308,-480.0,0.00021513,2]
[387691826,1758811843317,-522.17,0.00021514,2]
[387691828,1758811843327,-480.0,0.00021514,2]
[387691829,1758811843337,-480.0,0.00021514,2]
[387691830,1758811843347,-480.0,0.00021514,2]
[387691831,1758811843356,-587.24,0.00021514,2]
[387691832,1758811843365,-480.0,0.00021514,2]
[387691833,1758811843375,-611.71,0.00021514,2]
[387691834,1758811843385,-480.0,0.00021514,2]
[387691835,1758811843394,-480.0,0.00021514,2]
[387691836,1758811843404,-2422.16,0.00021515,2]
[387691837,1758811843413,-1847.87,0.00021515,2]
[387691838,1758811843423,-480.0,0.00021515,2]
[387691839,1758811843433,-671.94,0.00021515,2]
[387691840,1758811843442,-480.0,0.00021516,2]
[387691841,1758811843452,-480.0,0.00021516,2]
[387691842,1758811843462,-503.08,0.00021517,2]
[387691843,1758811843471,-480.0,0.00021517,2]
[387691844,1758811843480,-150.0,0.00021786,2]
[387691845,1758811843490,-480.0,0.00021787,2]
[387691846,1758811843500,-522.17,0.00021788,2]
[387691847,1758811843510,-480.0,0.00021788,2]
[387691848,1758811843520,-480.0,0.00021788,2]
[387691849,1758811843530,-480.0,0.00021788,2]
[387691850,1758811843540,-587.24,0.00021788,2]
[387691851,1758811843549,-480.0,0.00021788,2]
[387691852,1758811843559,-611.71,0.00021788,2]
[387691853,1758811843569,-480.0,0.00021788,2]
[387691854,1758811843578,-480.0,0.00021788,2]
[387691855,1758811843588,-2422.16,0.00021789,2]
[387691856,1758811843598,-1847.87,0.00021789,2]
[387691857,1758811843608,-480.0,0.00021789,2]
[387691858,1758811843617,-671.94,0.00021789,2]
[387691859,1758811843626,-480.0,0.0002179,2]
[387691860,1758811843636,-480.0,0.00021791,2]
[387691861,1758811843646,-1000.0,0.00021891,2]
[387691862,1758811843656,-360.0,0.00021902,2]
[387691863,1758811843665,-480.0,0.00021917,2]
[387691864,1758811843674,-480.0,0.00021917,2]
[387691865,1758811843684,-480.0,0.00021917,2]
[387691866,1758811843694,-480.0,0.00021917,2]
[387691867,1758811843703,-480.0,0.00021917,2]
[387691868,1758811843712,-480.0,0.00021917,2]
[387691869,1758811843722,-480.0,0.00021917,2]
[387691870,1758811843733,-480.0,0.00021917,2]
[387691871,1758811843743,-480.0,0.00021917,2]
[387691872,1758811843753,-480.0,0.00021917,2]
[387691873,1758811843763,-500.0,0.00021917,2]
[387691874,1758811843772,-500.0,0.00021917,2]
[387691875,1758811843782,-500.0,0.00021917,2]
[387691876,1758811843791,-407.85891231,0.00021917,2]
[387691877,1758811843800,-501.33395113,0.00021927,2]
[387691878,1758811843810,-906.28539915,0.00021927,2]
[387691879,1758811843819,-500.0,0.00021927,2]
[387691880,1758811843829,-502.27942844,0.00021936,2]
[387691881,1758811843838,-1466.91972153,0.00022044,2]
[387691882,1758811843847,-480.0,0.00022061,2]
[387691883,1758811843857,-522.17,0.00022062,2]
[387691884,1758811843866,-480.0,0.00022062,2]
[387691885,1758811843875,-480.0,0.00022062,2]
[387691886,1758811843886,-480.0,0.00022062,2]
[387691887,1758811843895,-587.24,0.00022062,2]
[387691888,1758811843905,-480.0,0.00022062,2]
[387691889,1758811843915,-611.71,0.00022062,2]
[387691890,1758811843925,-480.0,0.00022062,2]
[387691891,1758811843934,-248.74781039,0.00022062,2]
[387691892,1758811843944,-480.0,0.00022062,2]
[387691893,1758811843953,-2422.16,0.00022063,2]
[387691894,1758811843963,-1847.87,0.00022063,2]
[387691895,1758811843973,-535.96,0.00022063,2]
[387691896,1758811843983,-671.94,0.00022063,2]
[387691897,1758811843994,-480.0,0.00022064,2]
[387691898,1758811844003,-480.0,0.00022065,2]
[387691899,1758811844100,-1616.73,0.000221,2]
[387691900,1758811844120,-500.0,0.0002215,2]
[387691901,1758811844130,-476.83231082,0.00022249,2]
[387691902,1758811844139,-480.0,0.00022335,2]
[387691903,1758811844148,-522.17,0.00022336,2]
[387691904,1758811844158,-369.45,0.00022336,2]
[387691905,1758811844167,-480.0,0.00022336,2]
[387691906,1758811844177,-480.0,0.00022336,2]
[387691907,1758811844191,-587.24,0.00022336,2]
[387691908,1758811844200,-480.0,0.00022336,2]
[387691909,1758811844211,-611.71,0.00022336,2]
[387691910,1758811844220,-480.0,0.00022336,2]
[387691911,1758811844230,-480.0,0.00022336,2]
[387691912,1758811844239,-2422.16,0.00022337,2]
[387691913,1758811844250,-1847.87,0.00022337,2]
[387691914,1758811844260,-671.94,0.00022337,2]
[387691915,1758811844272,-480.0,0.00022338,2]
[387691916,1758811844281,-480.0,0.00022339,2]
[387691917,1758811844291,-241.63707886,0.000224,2]
[387691918,1758811844300,-160.0,0.00022423,2]
[387691919,1758811844310,-233.66602051,0.00022423,2]
[387691920,1758811844319,-160.0,0.00022423,2]
[387691921,1758811844328,-160.0,0.00022423,2]
[387691922,1758811844338,-160.0,0.00022426,2]
[387691923,1758811844348,-2757.9703691,0.00022428,2]
[387691924,1758811844358,-1500.0,0.00022439,2]
[387691925,1758811844367,-460.0,0.0002245,2]
[387691926,1758811844376,-480.0,0.00022609,2]
[387691927,1758811844386,-522.17,0.0002261,2]
[387691928,1758811844396,-480.0,0.0002261,2]
[387691929,1758811844405,-480.0,0.0002261,2]
[387691930,1758811844415,-587.24,0.0002261,2]
[387691931,1758811844424,-200.0,0.0002261,2]
[387691932,1758811844434,-611.71,0.0002261,2]
[387691933,1758811844443,-480.0,0.0002261,2]
[387691934,1758811844453,-480.0,0.0002261,2]
[387691935,1758811844462,-2422.16,0.00022611,2]
[387691936,1758811844472,-1847.87,0.00022611,2]
[387691937,1758811844481,-671.94,0.00022611,2]
[387691938,1758811844490,-480.0,0.00022612,2]
[387691939,1758811844500,-480.0,0.00022613,2]
[387691940,1758811844509,-528.030366,0.00022698,2]
[387691941,1758811844519,-150.0,0.00022733,2]
[387691943,1758811844527,-308.05950581,0.0002281,2]
[387691945,1758811844536,-274.16686449,0.00022883,2]
[387691947,1758811844546,-522.17,0.00022884,2]
[387691949,1758811844555,-480.0,0.00022884,2]
[387691951,1758811844564,-480.0,0.00022884,2]
[387691952,1758811844573,-587.24,0.00022884,2]
[387691954,1758811844582,-611.71,0.00022884,2]
[387691956,1758811844591,-480.0,0.00022884,2]
[387691958,1758811844600,-220.01,0.00022884,2]
[387691960,1758811844609,-2422.16,0.00022885,2]
[387691962,1758811844619,-1847.87,0.00022885,2]
[387691964,1758811844629,-671.94,0.00022885,2]
[387691966,1758811844638,-435.27,0.00022886,2]
[387691968,1758811844647,-323.76,0.00022887,2]
[387691970,1758811844656,-168.0,0.00022887,2]
[387691972,1758811844665,-587.0,0.00022939,2]
[387691974,1758811844675,-2000.0,0.00022987,2]
[387691976,1758811844684,-560.0,0.00022998,2]
[387691978,1758811844693,-160.0,0.00023,2]
[387691980,1758811844702,-168.0,0.00023068,2]
[387691982,1758811844711,-168.0,0.00023075,2]
[387691985,1758811844728,-168.0,0.0002311,2]
[387691987,1758811844737,-1466.91972153,0.00023116,2]
[387691989,1758811844747,-615.3863701,0.0002312,2]
[387691991,1758811844757,-522.17,0.00023158,2]
[387691993,1758811844766,-480.0,0.00023158,2]
[387691995,1758811844775,-480.0,0.00023158,2]
[387691997,1758811844784,-587.24,0.00023158,2]
[387691999,1758811844794,-611.71,0.00023158,2]
[387692001,1758811844803,-480.0,0.00023158,2]
[387692003,1758811844813,-2422.16,0.00023159,2]
[387692006,1758811844822,-1847.87,0.00023159,2]
[387692009,1758811844831,-671.94,0.00023159,2]
[387692012,1758811844841,-636.0,0.00023161,2]
[387692015,1758811844850,-168.0,0.00023215,2]
[387692018,1758811844860,-168.0,0.00023297,2]
[387692021,1758811844870,-168.0,0.00023342,2]
[387692023,1758811844879,-168.0,0.00023361,2]
[387692025,1758811844888,-168.0,0.00023424,2]
[387692027,1758811844898,-522.17,0.00023432,2]
[387692029,1758811844908,-480.0,0.00023432,2]
[387692031,1758811844917,-480.0,0.00023432,2]
[387692033,1758811844926,-587.24,0.00023432,2]
[387692035,1758811844936,-611.71,0.00023432,2]
[387692037,1758811844945,-480.0,0.00023432,2]
[387692039,1758811844955,-2422.16,0.00023433,2]
[387692041,1758811844965,-1847.87,0.00023433,2]
[387692043,1758811844974,-671.94,0.00023433,2]
[387692045,1758811844983,-201.0,0.0002347,2]
[387692047,1758811844994,-2000.0,0.00023535,2]
[387692049,1758811845003,-820.0,0.00023546,2]
[387692051,1758811845012,-150.0,0.00023685,2]
[387692053,1758811845021,-480.0,0.00023706,2]
[387692055,1758811845031,-480.0,0.00023706,2]
[387692057,1758811845040,-587.24,0.00023706,2]
[387692059,1758811845049,-611.71,0.00023706,2]
[387692061,1758811845059,-206.89941345,0.00023706,2]
[387692063,1758811845068,-2422.16,0.00023707,2]
[387692065,1758811845078,-1847.87,0.00023707,2]
[387692067,1758811845087,-671.94,0.00023707,2]
[387692069,1758811845096,-168.0,0.00023736,2]
[387692071,1758811845106,-201.0,0.00023805,2]
[387692073,1758811845115,-168.0,0.00023825,2]
[387692075,1758811845125,-168.0,0.00023943,2]
[387692077,1758811845135,-241.63707886,0.00023963,2]
[387692079,1758811845145,-480.0,0.0002398,2]
[387692081,1758811845154,-480.0,0.0002398,2]
[387692083,1758811845163,-587.24,0.0002398,2]
[387692085,1758811845173,-611.71,0.0002398,2]
[387692087,1758811845182,-2422.16,0.00023981,2]
[387692089,1758811845197,-1847.87,0.00023981,2]
[387692091,1758811845206,-671.94,0.00023981,2]
[387692093,1758811845215,-1007.412,0.00024109,6]
[387692095,1758811845224,-1466.91972153,0.00024187,2]
[387692097,1758811845234,-480.0,0.00024254,2]
[387692099,1758811845243,-480.0,0.00024254,2]
[387692101,1758811845252,-587.24,0.00024254,2]
[387692103,1758811845262,-611.71,0.00024254,2]
[387692104,1758811845271,-2422.16,0.00024255,2]
[387692106,1758811845280,-1847.87,0.00024255,2]
[387692108,1758811845290,-671.94,0.00024255,2]
[387692110,1758811845300,-168.0,0.00024311,2]
[387692112,1758811845309,-1616.73,0.000245,2]
[387692114,1758811845320,-480.0,0.00024528,2]
[387692116,1758811845330,-285.49,0.00024528,2]
[387692118,1758811845340,-587.24,0.00024528,2]
[387692121,1758811845350,-611.71,0.00024528,2]
[387692123,1758811845360,-2422.16,0.00024529,2]
[387692125,1758811845371,-1847.87,0.00024529,2]
[387692126,1758811845380,-671.94,0.00024529,2]
[387692128,1758811845389,-168.0,0.0002457,2]
[387692130,1758811845399,-150.0,0.00024633,2]
[387692132,1758811845408,-380.0,0.00024658,2]
[387692134,1758811845418,-168.0,0.00024756,2]
[387692136,1758811845427,-1000.0,0.00024771,2]
[387692138,1758811845436,-1000.0,0.00024771,2]
[387692140,1758811845446,-1006.43456884,0.00024771,2]
[387692142,1758811845455,-350.0,0.00024771,2]
[387692144,1758811845464,-151.0,0.00024771,2]
[387692146,1758811845474,-500.0,0.00024771,2]
[387692148,1758811845484,-151.0,0.00024771,2]
[387692150,1758811845494,-500.0,0.00024771,2]
[387692152,1758811845503,-151.0,0.00024771,2]
[387692154,1758811845512,-500.0,0.00024771,2]
[387692155,1758811845522,-151.0,0.00024771,2]
[387692158,1758811845532,-500.0,0.00024771,2]